fUST/lending_fUST_20241201
["ID","MTS","AMOUNT","RATE_DAILY","PERIOD"]
[343916126,1733059844488,-500.0,0.00027397,3]
[343916127,1733059844497,-500.0,0.00027397,3]
[343916128,1733059844506,-500.0,0.00027397,3]
[343916129,1733059844517,-500.0,0.00027397,3]
[343916130,1733059844527,-500.0,0.00027397,3]
[343916131,1733059844536,-516.66336608,0.00027397,3]
[343916132,1733059844546,-500.0,0.00027397,3]
[343916133,1733059844555,-500.0,0.00027397,3]
[343916134,1733059844564,-158.12,0.00027397,3]
[343916135,1733059844674,-222.33859838,0.00027397,3]
[343916136,1733059844684,-500.0,0.00027397,3]
[343916137,1733059844694,-354.69,0.00027397,2]
[343916138,1733059844706,-500.0,0.00027397,3]
[343916139,1733059844715,-323.66398931,0.00027397,3]
[343916140,1733059844725,-500.0,0.00027397,3]
[343916141,1733059844735,-500.0,0.00027397,3]
[343916142,1733059844744,-315.58,0.00027397,3]
[343916143,1733059844753,-500.0,0.00027397,3]
[343916144,1733059844764,-500.0,0.00027397,3]
[343916145,1733059844774,-500.0,0.00027397,3]
[343916146,1733059844784,-500.0,0.00027397,3]
[343916147,1733059844794,-500.0,0.00027397,3]
[343916148,1733059844803,-500.0,0.00027397,3]
[343916149,1733059844812,-37066.87,0.00027397,3]
[343916150,1733059844822,-500.0,0.00027397,3]
[343916151,1733059844831,-507.90410497,0.00027397,3]
[343916152,1733059844840,-473.18928205,0.00027397,3]
[343916153,1733059844849,-814.64,0.00027397,3]
[343916154,1733059844858,-511.38236095,0.00027397,3]
[343916155,1733059844868,-500.0,0.00027397,3]
[343916156,1733059844877,-1500.0,0.00027397,2]
[343916157,1733059844887,-500.0,0.00027397,3]
[343916158,1733059844896,-386.40388703,0.00027397,3]
[343916159,1733059844905,-592.12,0.00027397,3]
[343916160,1733059844914,-932.64,0.00027397,3]
[343916161,1733059844924,-413.56266446,0.00027397,3]
[343916162,1733059844933,-500.0,0.00027397,3]
[343916163,1733059844942,-601.53563775,0.00027397,3]
[343916164,1733059844952,-500.0,0.00027397,3]
[343916165,1733059844962,-500.0,0.00027397,3]
[343916166,1733059844971,-500.0,0.00027397,3]
[343916167,1733059844980,-500.0,0.00027397,3]
[343916168,1733059844990,-500.0,0.00027397,3]
[343916169,1733059844999,-500.0,0.00027397,3]
[343916170,1733059845008,-500.0,0.00027397,3]
[343916171,1733059845018,-389.9167963,0.00027397,3]
[343916172,1733059845028,-510.08027267,0.00027397,3]
[343916173,1733059845037,-645.2,0.00027397,3]
[343916174,1733059845047,-547.35,0.00027397,3]
[343916175,1733059845056,-500.0,0.00027397,3]
[343916176,1733059845065,-500.0,0.00027397,2]
[343916177,1733059845074,-284.79085959,0.00027397,3]
[343916178,1733059845084,-500.0,0.00027397,3]
[343916179,1733059845093,-228.39170788,0.00027397,3]
[343916180,1733059845102,-500.0,0.00027397,3]
[343916181,1733059845111,-248.50789767,0.00027397,3]
[343916182,1733059845121,-500.0,0.00027397,3]
[343916183,1733059845133,-500.0,0.00027397,3]
[343916184,1733059845142,-500.0,0.00027397,3]
[343916185,1733059845151,-500.0,0.00027397,3]
[343916186,1733059845160,-205.73928027,0.00027397,3]
[343916187,1733059845170,-152.657716,0.00027422,2]
[343916188,1733059845179,-152.657716,0.00027422,2]
[343916189,1733059845188,-167.176288,0.00027422,2]
[343916190,1733059845200,-200.146448,0.00027422,2]
[343916191,1733059845209,-172.095175,0.00027422,2]
[343916192,1733059845219,-190.750838,0.00027422,2]
[343916193,1733059845228,-160.117157,0.00027422,2]
[343916194,1733059845237,-240.873027,0.00027422,2]
[343916195,1733059845247,-200.146448,0.00027422,2]
[343916196,1733059845256,-202.093207,0.00027422,2]
[343916197,1733059845265,-200.146447,0.00027422,2]
[343916198,1733059845274,-2000.0,0.000275,5]
[343916199,1733059845284,-160.0,0.00027564,3]
[343916200,1733059845293,-500.0,0.0002767,2]
[343916201,1733059845302,-268.27232841,0.0002767,2]
[343916202,1733059845312,-301.33798829,0.0002767,2]
[343916203,1733059845321,-190.56480512,0.0002767,2]
[343916204,1733059845330,-500.0,0.0002767,2]
[343916205,1733059845340,-330.29927308,0.0002767,2]
[343916206,1733059845349,-660.48,0.00027671,3]
[343916207,1733059845358,-500.0,0.00027671,3]
[343916208,1733059845368,-500.0,0.00027671,3]
[343916209,1733059845377,-500.0,0.00027671,3]
[343916210,1733059845387,-505.79657263,0.00027671,3]
[343916211,1733059845396,-500.0,0.00027671,3]
[343916212,1733059845406,-500.0,0.00027671,3]
[343916213,1733059845415,-500.0,0.00027671,3]
[343916214,1733059845424,-500.0,0.00027671,3]
[343916215,1733059845436,-500.0,0.00027671,3]
[343916216,1733059845446,-500.0,0.00027671,3]
[343916217,1733059845458,-500.0,0.00027671,3]
[343916218,1733059845471,-500.0,0.00027671,3]
[343916219,1733059845487,-500.0,0.00027671,3]
[343916220,1733059845497,-500.0,0.00027671,3]
[343916221,1733059845507,-500.0,0.00027671,3]
[343916222,1733059845521,-500.0,0.00027671,3]
[343916223,1733059845532,-235.38004213,0.00027671,3]
[343916224,1733059845543,-500.0,0.00027671,3]
[343916225,1733059845555,-500.0,0.00027671,3]
[343916226,1733059845565,-500.0,0.00027671,3]
[343916227,1733059845575,-621.32,0.00027671,3]
[343916228,1733059845584,-500.0,0.00027671,3]
[343916229,1733059845595,-500.0,0.00027671,3]
[343916230,1733059845605,-500.0,0.00027671,3]
[343916231,1733059845614,-500.0,0.00027671,3]
[343916232,1733059845627,-500.0,0.00027671,3]
[343916233,1733059845638,-500.0,0.00027671,3]
[343916234,1733059845648,-447.39366954,0.00027671,3]
[343916235,1733059845658,-845.23,0.00027671,3]
[343916236,1733059845668,-718.59,0.00027671,3]
[343916237,1733059845678,-500.0,0.00027671,3]
[343916238,1733059845688,-500.0,0.00027671,3]
[343916239,1733059845698,-500.0,0.00027671,3]
[343916240,1733059845710,-500.0,0.00027671,3]
[343916241,1733059845720,-500.0,0.00027671,3]
[343916242,1733059845729,-500.0,0.00027671,3]
[343916243,1733059845739,-500.0,0.00027671,3]
[343916244,1733059845749,-500.0,0.00027671,3]
[343916245,1733059845759,-500.0,0.00027671,3]
[343916246,1733059845769,-528.33,0.00027671,3]
[343916247,1733059845779,-500.0,0.00027671,3]
[343916248,1733059845789,-500.0,0.00027671,3]
[343916249,1733059845799,-500.0,0.00027671,3]
[343916250,1733059845808,-500.0,0.00027671,3]
[343916251,1733059845818,-500.0,0.00027671,3]
[343916252,1733059845828,-500.0,0.00027671,3]
[343916253,1733059845837,-500.0,0.00027671,3]
[343916254,1733059845846,-500.0,0.00027671,3]
[343916255,1733059845856,-500.0,0.00027671,3]
[343916256,1733059845866,-324.84,0.00027671,3]
[343916257,1733059845875,-500.0,0.00027671,3]
[343916258,1733059845884,-500.0,0.00027671,3]
[343916259,1733059845894,-500.0,0.00027671,3]
[343916260,1733059845903,-362.03459483,0.00027671,3]
[343916261,1733059845913,-500.0,0.00027671,3]
[343916262,1733059845923,-500.0,0.00027671,3]
[343916263,1733059845933,-217.83638541,0.00027671,3]
[343916264,1733059845942,-478.85142975,0.00027671,3]
[343916265,1733059845952,-500.0,0.00027671,3]
[343916266,1733059845961,-500.0,0.00027671,3]
[343916267,1733059845971,-500.0,0.00027671,3]
[343916268,1733059845980,-500.0,0.00027671,3]
[343916269,1733059845990,-500.0,0.00027671,3]
[343916270,1733059845999,-500.0,0.00027671,3]
[343916271,1733059846009,-500.0,0.00027671,3]
[343916272,1733059846019,-500.0,0.00027671,3]
[343916273,1733059846028,-500.0,0.00027671,3]
[343916274,1733059846037,-37066.87,0.00027671,3]
[343916275,1733059846047,-500.0,0.00027671,3]
[343916276,1733059846056,-814.64,0.00027671,3]
[343916277,1733059846066,-500.0,0.00027671,3]
[343916278,1733059846076,-1500.0,0.00027671,2]
[343916280,1733059846094,-645.54,0.00027671,3]
[343916281,1733059846104,-592.12,0.00027671,3]
[343916282,1733059846114,-932.64,0.00027671,3]
[343916283,1733059846124,-509.07163528,0.00027671,3]
[343916284,1733059846133,-500.0,0.00027671,3]
[343916285,1733059846143,-500.0,0.00027671,3]
[343916286,1733059846152,-500.0,0.00027671,3]
[343916287,1733059846162,-500.0,0.00027671,3]
[343916288,1733059846171,-500.0,0.00027671,3]
[343916289,1733059846181,-261.06,0.00027671,3]
[343916290,1733059846190,-500.0,0.00027671,3]
[343916292,1733059846200,-645.2,0.00027671,3]
[343916294,1733059846212,-500.0,0.00027671,2]
[343916296,1733059846230,-500.0,0.00027671,3]
[343916297,1733059846240,-151.62370256,0.00027671,3]
[343916298,1733059846249,-500.0,0.00027671,3]
[343916299,1733059846259,-500.0,0.00027671,3]
[343916300,1733059846268,-500.0,0.00027671,3]
[343916301,1733059846277,-534.10293613,0.00027671,3]
[343916302,1733059846287,-167.176288,0.00027765,2]
[343916303,1733059846296,-190.750838,0.00027765,2]
[343916304,1733059846306,-160.117157,0.00027765,2]
[343916306,1733059846315,-240.873027,0.00027765,2]
[343916308,1733059846325,-224.303159,0.000278,2]
[343916310,1733059846334,-974.66840636,0.000278,3]
[343916311,1733059846343,-176.981132,0.00027854,2]
[343916313,1733059846353,-249.59,0.000279,31]
[343916314,1733059846363,-249.59,0.000279,31]
[343916315,1733059846372,-249.59,0.000279,31]
[343916317,1733059846382,-249.59,0.000279,31]
[343916318,1733059846392,-249.59,0.000279,31]
[343916319,1733059846402,-249.59,0.000279,31]
[343916320,1733059846412,-249.59,0.000279,31]
[343916321,1733059846421,-249.59,0.000279,31]
[343916322,1733059846432,-249.59,0.000279,31]
[343916323,1733059846446,-249.59,0.000279,31]
[343916324,1733059846457,-249.59,0.000279,31]
[343916325,1733059846467,-249.59,0.000279,31]
[343916326,1733059846477,-1257.5,0.000279,2]
[343916327,1733059846487,-660.48,0.00027945,3]
[343916328,1733059846497,-485.35670947,0.00027945,3]
[343916329,1733059846507,-532.6145328,0.00027945,3]
[343916330,1733059846519,-500.0,0.00027945,3]
[343916331,1733059846528,-500.0,0.00027945,3]
[343916332,1733059846538,-500.0,0.00027945,3]
[343916333,1733059846548,-500.0,0.00027945,3]
[343916334,1733059846558,-224.02996738,0.00027945,3]
[343916335,1733059846567,-500.0,0.00027945,3]
[343916336,1733059846577,-500.0,0.00027945,3]
[343916337,1733059846587,-500.0,0.00027945,3]
[343916338,1733059846597,-500.0,0.00027945,3]
[343916339,1733059846607,-535.32900852,0.00027945,3]
[343916340,1733059846617,-316.73338031,0.00027945,3]
[343916341,1733059846627,-500.0,0.00027945,3]
[343916342,1733059846636,-500.0,0.00027945,3]
[343916344,1733059846645,-500.0,0.00027945,3]
[343916345,1733059846655,-500.0,0.00027945,3]
[343916346,1733059846664,-500.0,0.00027945,3]
[343916347,1733059846674,-621.32,0.00027945,3]
[343916348,1733059846684,-510.79268747,0.00027945,3]
[343916349,1733059846693,-500.0,0.00027945,3]
[343916350,1733059846706,-500.0,0.00027945,3]
[343916351,1733059846718,-500.0,0.00027945,3]
[343916352,1733059846727,-500.0,0.00027945,3]
[343916353,1733059846737,-500.0,0.00027945,3]
[343916355,1733059846747,-845.23,0.00027945,3]
[343916356,1733059846757,-718.59,0.00027945,3]
[343916357,1733059846767,-500.0,0.00027945,3]
[343916358,1733059846776,-500.0,0.00027945,3]
[343916359,1733059846786,-500.0,0.00027945,3]
[343916360,1733059846797,-500.0,0.00027945,3]
[343916361,1733059846806,-500.0,0.00027945,3]
[343916362,1733059846816,-500.0,0.00027945,3]
[343916363,1733059846826,-500.0,0.00027945,3]
[343916364,1733059846836,-500.0,0.00027945,3]
[343916365,1733059846846,-437.34828235,0.00027945,3]
[343916366,1733059846857,-528.33,0.00027945,3]
[343916367,1733059846867,-500.0,0.00027945,3]
[343916368,1733059846958,-500.0,0.00027945,3]
[343916369,1733059846968,-500.0,0.00027945,3]
[343916370,1733059846978,-216.94473034,0.00027945,3]
[343916371,1733059846988,-500.0,0.00027945,3]
[343916372,1733059846997,-500.0,0.00027945,3]
[343916373,1733059847007,-500.0,0.00027945,3]
[343916374,1733059847017,-500.0,0.00027945,3]
[343916375,1733059847026,-500.0,0.00027945,3]
[343916376,1733059847035,-500.0,0.00027945,3]
[343916377,1733059847045,-500.0,0.00027945,3]
[343916378,1733059847054,-500.0,0.00027945,3]
[343916379,1733059847063,-500.0,0.00027945,3]
[343916380,1733059847072,-500.0,0.00027945,3]
[343916381,1733059847083,-500.0,0.00027945,3]
[343916382,1733059847092,-158.78490843,0.00027945,3]
[343916383,1733059847102,-592.51508782,0.00027945,3]
[343916384,1733059847111,-302.61485444,0.00027945,3]
[343916385,1733059847120,-500.0,0.00027945,3]
[343916386,1733059847129,-500.0,0.00027945,3]
[343916387,1733059847138,-37066.87,0.00027945,3]
[343916388,1733059847148,-500.0,0.00027945,3]
[343916389,1733059847157,-814.64,0.00027945,3]
[343916390,1733059847166,-500.0,0.00027945,3]
[343916391,1733059847175,-269.65590198,0.00027945,2]
[343916392,1733059847184,-592.12,0.00027945,3]
[343916393,1733059847193,-932.64,0.00027945,3]
[343916394,1733059847206,-500.0,0.00027945,3]
[343916395,1733059847215,-500.0,0.00027945,3]
[343916396,1733059847224,-500.0,0.00027945,3]
[343916397,1733059847234,-500.0,0.00027945,3]
[343916398,1733059847244,-180.36,0.00027945,3]
[343916399,1733059847253,-558.97610518,0.00027945,3]
[343916400,1733059847263,-645.2,0.00027945,3]
[343916401,1733059847273,-500.0,0.00027945,2]
[343916402,1733059847283,-500.0,0.00027945,3]
[343916403,1733059847293,-500.0,0.00027945,3]
[343916404,1733059847302,-500.0,0.00027945,3]
[343916405,1733059847312,-500.0,0.00027945,3]
[343916406,1733059847321,-32876.56895013,0.00028,10]
[343916407,1733059847330,-5411.0793222,0.00028,2]
[343916408,1733059847339,-1032.33437584,0.00028,7]
[343916409,1733059847351,-412.634266,0.00028,10]
[343916410,1733059847363,-2000.0,0.00028,3]
[343916411,1733059847372,-167.176288,0.00028107,2]
[343916412,1733059847382,-190.750838,0.00028107,2]
[343916413,1733059847392,-160.117157,0.00028107,2]
[343916414,1733059847402,-240.873027,0.00028107,2]
[343916415,1733059847411,-151.0,0.00028171,6]
[343916416,1733059847421,-660.48,0.00028219,3]
[343916417,1733059847431,-451.37424209,0.00028219,3]
[343916418,1733059847443,-211.90796879,0.00028219,3]
[343916419,1733059847453,-500.0,0.00028219,3]
[343916420,1733059847463,-500.0,0.00028219,3]
[343916421,1733059847472,-500.0,0.00028219,3]
[343916422,1733059847483,-500.0,0.00028219,3]
[343916423,1733059847493,-500.0,0.00028219,3]
[343916424,1733059847503,-500.0,0.00028219,3]
[343916425,1733059847513,-500.0,0.00028219,3]
[343916426,1733059847523,-210.15225108,0.00028219,3]
[343916427,1733059847532,-500.0,0.00028219,3]
[343916428,1733059847542,-500.0,0.00028219,3]
[343916429,1733059847551,-500.0,0.00028219,3]
[343916430,1733059847562,-621.32,0.00028219,3]
[343916431,1733059847572,-500.0,0.00028219,3]
[343916432,1733059847582,-500.0,0.00028219,3]
[343916433,1733059847592,-500.0,0.00028219,3]
[343916434,1733059847602,-500.0,0.00028219,3]
[343916435,1733059847613,-500.0,0.00028219,3]
[343916436,1733059847624,-845.23,0.00028219,3]
[343916437,1733059847634,-718.59,0.00028219,3]
[343916438,1733059847644,-500.0,0.00028219,3]
[343916439,1733059847657,-500.0,0.00028219,3]
[343916440,1733059847667,-500.0,0.00028219,3]
[343916441,1733059847677,-177.16413574,0.00028219,3]
[343916442,1733059847689,-500.0,0.00028219,3]
[343916443,1733059847698,-500.0,0.00028219,3]
[343916444,1733059847710,-500.0,0.00028219,3]
[343916445,1733059847720,-500.0,0.00028219,3]
[343916446,1733059847729,-528.33,0.00028219,3]
[343916447,1733059847739,-500.0,0.00028219,3]
[343916448,1733059847748,-500.0,0.00028219,3]
[343916449,1733059847757,-500.0,0.00028219,3]
[343916450,1733059847767,-500.0,0.00028219,3]
[343916451,1733059847776,-500.0,0.00028219,3]
[343916452,1733059847786,-500.0,0.00028219,3]
[343916453,1733059847795,-499.992344,0.00028219,3]
[343916454,1733059847805,-500.0,0.00028219,3]
[343916455,1733059847815,-437.54264176,0.00028219,3]
[343916456,1733059847825,-500.0,0.00028219,3]
[343916457,1733059847835,-500.0,0.00028219,3]
[343916458,1733059847845,-500.0,0.00028219,3]
[343916459,1733059847855,-165.34,0.00028219,3]
[343916460,1733059847866,-37066.87,0.00028219,3]
[343916461,1733059847875,-500.0,0.00028219,3]
[343916462,1733059847886,-814.64,0.00028219,3]
[343916463,1733059847895,-500.0,0.00028219,3]
[343916464,1733059847905,-592.12,0.00028219,3]
[343916465,1733059847916,-932.64,0.00028219,3]
[343916466,1733059847925,-500.0,0.00028219,3]
[343916467,1733059847935,-500.0,0.00028219,3]
[343916468,1733059847945,-500.0,0.00028219,3]
[343916469,1733059847956,-500.0,0.00028219,3]
[343916470,1733059847967,-645.2,0.00028219,3]
[343916471,1733059847979,-500.0,0.00028219,2]
[343916472,1733059847993,-328.31359227,0.00028219,3]
[343916473,1733059848006,-500.0,0.00028219,3]
[343916474,1733059848019,-500.0,0.00028219,3]
[343916475,1733059848032,-500.0,0.00028219,3]
[343916476,1733059848043,-2500.0,0.0002823,3]
[343916477,1733059848055,-2500.0,0.00028239,3]
[343916478,1733059848069,-2500.0,0.00028247,3]
[343916479,1733059848082,-167.176288,0.0002845,2]
[343916480,1733059848095,-190.750838,0.0002845,2]
[343916481,1733059848107,-160.117157,0.0002845,2]
[343916482,1733059848120,-240.873027,0.0002845,2]
[343916483,1733059848133,-660.48,0.00028493,3]
[343916484,1733059848145,-500.0,0.00028493,3]
[343916485,1733059848157,-500.0,0.00028493,3]
[343916486,1733059848171,-500.0,0.00028493,3]
[343916487,1733059848184,-500.0,0.00028493,3]
[343916488,1733059848198,-500.0,0.00028493,3]
[343916489,1733059848213,-500.0,0.00028493,3]
[343916490,1733059848224,-500.0,0.00028493,3]
[343916491,1733059848236,-500.0,0.00028493,3]
[343916492,1733059848249,-500.0,0.00028493,3]
[343916493,1733059848262,-500.0,0.00028493,3]
[343916494,1733059848275,-621.32,0.00028493,3]
[343916495,1733059848288,-500.0,0.00028493,3]
[343916496,1733059848300,-500.0,0.00028493,3]
[343916497,1733059848313,-500.0,0.00028493,3]
[343916498,1733059848324,-500.0,0.00028493,3]
[343916499,1733059848334,-312.60598179,0.00028493,3]
[343916500,1733059848344,-845.23,0.00028493,3]
[343916501,1733059848356,-718.59,0.00028493,3]
[343916502,1733059848367,-500.0,0.00028493,3]
[343916503,1733059848378,-500.0,0.00028493,3]
[343916504,1733059848390,-500.0,0.00028493,3]
[343916505,1733059848403,-500.0,0.00028493,3]
[343916506,1733059848415,-500.0,0.00028493,3]
[343916507,1733059848427,-500.0,0.00028493,3]
[343916508,1733059848439,-500.0,0.00028493,3]
[343916509,1733059848455,-528.33,0.00028493,3]
[343916510,1733059848468,-500.0,0.00028493,3]
[343916511,1733059848481,-500.0,0.00028493,3]
[343916512,1733059848493,-174.35487514,0.00028493,3]
[343916513,1733059848508,-500.0,0.00028493,3]
[343916514,1733059848523,-500.0,0.00028493,3]
[343916515,1733059848535,-500.0,0.00028493,3]
[343916516,1733059848545,-500.0,0.00028493,3]
[343916517,1733059848556,-500.0,0.00028493,3]
[343916518,1733059848567,-500.0,0.00028493,3]
[343916519,1733059848580,-37066.87,0.00028493,3]
[343916520,1733059848593,-500.0,0.00028493,3]
[343916521,1733059848608,-814.64,0.00028493,3]
[343916522,1733059848620,-500.0,0.00028493,3]
[343916523,1733059848631,-592.12,0.00028493,3]
[343916524,1733059848642,-932.64,0.00028493,3]
[343916525,1733059848653,-500.0,0.00028493,3]
[343916526,1733059848665,-500.0,0.00028493,3]
[343916527,1733059848676,-500.0,0.00028493,3]
[343916528,1733059848688,-500.0,0.00028493,3]
[343916529,1733059848700,-645.2,0.00028493,3]
[343916530,1733059848713,-500.0,0.00028493,2]
[343916531,1733059848723,-500.0,0.00028493,3]
[343916532,1733059848734,-500.0,0.00028493,3]
[343916533,1733059848744,-500.0,0.00028493,3]
[343916534,1733059848755,-249.59,0.000285,31]
[343916535,1733059848766,-249.59,0.000285,31]
[343916536,1733059848777,-249.59,0.000285,31]
[343916537,1733059848788,-249.59,0.000285,31]
[343916538,1733059848800,-249.59,0.000285,31]
[343916539,1733059848810,-249.59,0.000285,31]
[343916540,1733059848822,-249.59,0.000285,31]
[343916541,1733059848833,-249.59,0.000285,31]
[343916542,1733059848844,-249.59,0.000285,31]
[343916543,1733059848855,-249.59,0.000285,31]
[343916544,1733059848867,-249.59,0.000285,31]
[343916545,1733059848878,-249.59,0.000285,31]
[343916546,1733059848889,-249.59,0.000285,31]
[343916547,1733059848900,-249.59,0.000285,31]
[343916548,1733059848910,-249.59,0.000285,31]
[343916549,1733059848921,-249.59,0.000285,31]
[343916550,1733059848931,-249.59,0.000285,31]
[343916551,1733059848942,-249.59,0.000285,31]
[343916552,1733059848954,-249.59,0.000285,31]
[343916553,1733059848965,-249.59,0.000285,31]
[343916554,1733059848976,-249.59,0.000285,31]
[343916555,1733059848987,-249.59,0.000285,31]
[343916556,1733059848998,-249.59,0.000285,31]
[343916557,1733059849010,-249.59,0.000285,31]
[343916558,1733059849020,-300.0,0.000285,2]
[343916559,1733059849032,-443.5,0.00028503,15]
[343916560,1733059849043,-151.0,0.00028628,6]
[343916561,1733059849053,-576.92177034,0.00028667,2]
[343916562,1733059849065,-660.48,0.00028767,3]
[343916563,1733059849075,-500.0,0.00028767,3]
[343916564,1733059849086,-500.0,0.00028767,3]
[343916565,1733059849097,-500.0,0.00028767,3]
[343916566,1733059849109,-500.0,0.00028767,3]
[343916567,1733059849121,-500.0,0.00028767,3]
[343916568,1733059849133,-500.0,0.00028767,3]
[343916569,1733059849144,-500.0,0.00028767,3]
[343916570,1733059849156,-500.0,0.00028767,3]
[343916571,1733059849167,-500.0,0.00028767,3]
[343916572,1733059849288,-500.0,0.00028767,3]
[343916573,1733059849303,-621.32,0.00028767,3]
[343916574,1733059849313,-500.0,0.00028767,3]
[343916575,1733059849323,-500.0,0.00028767,3]
[343916576,1733059849332,-500.0,0.00028767,3]
[343916577,1733059849342,-500.0,0.00028767,3]
[343916578,1733059849352,-845.23,0.00028767,3]
[343916579,1733059849362,-718.59,0.00028767,3]
[343916580,1733059849372,-500.0,0.00028767,3]
[343916581,1733059849382,-500.0,0.00028767,3]
[343916582,1733059849393,-500.0,0.00028767,3]
[343916583,1733059849403,-500.0,0.00028767,3]
[343916584,1733059849413,-500.0,0.00028767,3]
[343916585,1733059849423,-500.0,0.00028767,3]
[343916586,1733059849433,-500.0,0.00028767,3]
[343916587,1733059849445,-528.33,0.00028767,3]
[343916588,1733059849457,-500.0,0.00028767,3]
[343916589,1733059849467,-500.0,0.00028767,3]
[343916590,1733059849478,-500.0,0.00028767,3]
[343916591,1733059849488,-199.14328446,0.00028767,3]
[343916592,1733059849498,-500.0,0.00028767,3]
[343916593,1733059849508,-500.0,0.00028767,3]
[343916594,1733059849518,-500.0,0.00028767,3]
[343916595,1733059849529,-37066.87,0.00028767,3]
[343916596,1733059849539,-500.0,0.00028767,3]
[343916597,1733059849548,-814.64,0.00028767,3]
[343916598,1733059849558,-163.67894953,0.00028767,3]
[343916599,1733059849568,-592.12,0.00028767,3]
[343916600,1733059849578,-932.64,0.00028767,3]
[343916601,1733059849587,-500.0,0.00028767,3]
[343916602,1733059849597,-500.0,0.00028767,3]
[343916603,1733059849607,-500.0,0.00028767,3]
[343916604,1733059849616,-500.0,0.00028767,3]
[343916605,1733059849627,-645.2,0.00028767,3]
[343916606,1733059849636,-500.0,0.00028767,2]
[343916607,1733059849646,-500.0,0.00028767,3]
[343916608,1733059849655,-500.0,0.00028767,3]
[343916609,1733059849664,-500.0,0.00028767,3]
[343916610,1733059849674,-167.176288,0.00028793,2]
[343916611,1733059849684,-190.750838,0.00028793,2]
[343916612,1733059849695,-160.117157,0.00028793,2]
[343916613,1733059849708,-240.873027,0.00028793,2]
[343916614,1733059849725,-200.146448,0.00028793,2]
[343916615,1733059849735,-200.146448,0.00028793,2]
[343916616,1733059849744,-202.093207,0.00028793,2]
[343916617,1733059849754,-200.146447,0.00028793,2]
[343916618,1733059849765,-176.981132,0.00028895,2]
[343916619,1733059849775,-150.0,0.00028972,120]
[343916620,1733059849784,-1000.0,0.00029,120]
[343916621,1733059849794,-1521.573,0.00029,15]
[343916622,1733059849804,-160.0,0.0002901,4]
[343916623,1733059849813,-500.0,0.0002904,4]
[343916624,1733059849822,-660.48,0.00029041,3]
[343916625,1733059849831,-500.0,0.00029041,3]
[343916626,1733059849840,-500.0,0.00029041,3]
[343916627,1733059849850,-500.0,0.00029041,3]
[343916628,1733059849859,-500.0,0.00029041,3]
[343916629,1733059849869,-500.0,0.00029041,3]
[343916630,1733059849879,-500.0,0.00029041,3]
[343916631,1733059849889,-500.0,0.00029041,3]
[343916632,1733059849898,-500.0,0.00029041,3]
[343916633,1733059849908,-500.0,0.00029041,3]
[343916634,1733059849917,-500.0,0.00029041,3]
[343916635,1733059849926,-621.32,0.00029041,3]
[343916636,1733059849937,-500.0,0.00029041,3]